bitfinex-derivatives/quotes_SOLF0:USTF0_20260208
["timestamp","ask_amount","ask_price","bid_price","bid_amount"]
[1770573001814,9.130586,86.814,86.782,10.3788]
[1770573002012,9.1317189,86.813,86.773,3.93787172]
[1770573002216,10.75836039,86.841,86.791,3.93787172]
[1770573002421,3.73871569,86.849,86.791,3.93787172]
[1770573002622,4.4151309,86.84,86.791,3.93787172]
[1770573002916,3.73871569,86.839,86.791,3.93787172]
[1770573003724,3.73871569,86.839,86.792,3.93787172]
[1770573004319,3.73871569,86.839,86.796,3.93787172]
[1770573004525,4.4151309,86.85,86.796,3.93787172]
[1770573004915,3.73871569,86.852,86.801,3.93787172]
[1770573005522,4.4151309,86.86,86.801,3.93787172]
[1770573005719,4.4151309,86.87,86.825,3.93787172]
[1770573005928,8.15384659,86.87,86.825,3.93787172]
[1770573006128,3.73871569,86.869,86.825,3.93787172]
[1770573007221,4.4151309,86.88,86.831,3.93787172]
[1770573007423,3.73871569,86.882,86.831,3.93787172]
[1770573007928,3.73871569,86.895,86.841,3.93787172]
[1770573008829,3.73871569,86.895,86.843,3.93787172]
[1770573013131,10.364,86.907,86.844,10.3714]
[1770573013132,3.73871569,86.889,86.844,10.3714]
[1770573013332,3.73871569,86.879,86.844,10.3714]
[1770573015524,3.73871569,86.879,86.832,3.93787172]
[1770573015736,3.73871569,86.879,86.833,14.22533004]
[1770573016027,3.73871569,86.879,86.834,3.85253004]
[1770573022433,3.73871569,86.879,86.844,10.3714]
[1770573024033,3.73871569,86.879,86.844,14.22393004]
[1770573030342,3.97856419,86.896,86.847,3.85253004]
[1770573031845,3.97856419,86.896,86.85,3.85253004]
[1770573037351,3.97856419,86.889,86.85,3.85253004]
[1770573041944,3.97856419,86.879,86.84,14.22443004]
[1770573042646,3.97856419,86.879,86.841,3.85253004]
[1770573043753,3.97856419,86.879,86.845,10.3713]
[1770573046154,3.69368198,86.909,86.851,3.73235889]
[1770573046457,3.69368198,86.907,86.851,3.73235889]
[1770573046652,12.75115232,86.906,86.851,3.73235889]
[1770573046854,12.75115232,86.905,86.851,3.73235889]
[1770573047049,9.05747034,86.904,86.851,3.73235889]
[1770573047247,3.69368198,86.902,86.823,3.73235889]
[1770573047551,3.69368198,86.869,86.823,3.73235889]
[1770573047947,3.69368198,86.869,86.773,161.465]
[1770573047948,4.40863847,86.85,86.801,3.73235889]
[1770573048755,3.69368198,86.839,86.801,3.73235889]
[1770573048955,4.40863847,86.83,86.801,3.73235889]
[1770573051953,4.40863847,86.83,86.785,3.73235889]
[1770573052353,4.40863847,86.82,86.785,3.73235889]
[1770573053750,4.40863847,86.82,86.786,14.11075889]
[1770573054052,4.40863847,86.82,86.787,3.73235889]
[1770573054354,10.3697,86.859,86.787,3.73235889]
[1770573054355,4.40863847,86.84,86.787,3.73235889]
[1770573055060,3.69368198,86.859,86.801,3.73235889]
[1770573055854,4.40863847,86.87,86.815,3.73235889]
[1770573056453,8.10232045,86.87,86.815,3.73235889]
[1770573056855,8.10232045,86.87,86.827,10.3734]
[1770573057359,4.40863847,86.86,86.827,10.3734]
[1770573058455,4.40863847,86.86,86.827,14.10575889]
[1770573061059,3.69368198,86.849,86.813,3.73235889]
[1770573061457,3.69368198,86.849,86.801,3.73235889]
[1770573061857,3.69368198,86.849,86.814,10.375]
[1770573062057,3.69368198,86.849,86.814,14.10735889]
[1770573062861,4.40863847,86.85,86.815,3.73235889]
[1770573063561,3.69368198,86.859,86.815,3.73235889]
[1770573065668,9.04188424,86.858,86.815,3.73235889]
[1770573065868,3.69368198,86.859,86.815,3.73235889]
[1770573066068,12.73556564,86.858,86.815,3.73235889]
[1770573066271,3.69368198,86.858,86.815,3.73235889]
[1770573066665,3.69368198,86.858,86.817,3.73235889]
[1770573066864,8.10232045,86.87,86.817,3.73235889]
[1770573067870,8.10232045,86.87,86.819,3.73235889]
[1770573068470,3.69368198,86.869,86.819,3.73235889]
[1770573068867,3.69368198,86.869,86.823,10.3739]
[1770573069771,4.40863847,86.86,86.823,10.3739]
[1770573069972,4.40863847,86.86,86.824,3.73235889]
[1770573070271,3.69368198,86.869,86.824,3.73235889]
[1770573070468,3.69368198,86.869,86.825,10.3736]
[1770573070670,4.40863847,86.87,86.826,3.73235889]
[1770573071865,4.40863847,86.87,86.831,3.73235889]
[1770573075467,4.40863847,86.87,86.832,10.3729]
[1770573075674,4.40863847,86.87,86.832,14.27766312]
[1770573075875,4.40863847,86.87,86.833,3.90476312]
[1770573077170,3.7239274,86.869,86.832,10.3729]
[1770573078674,4.40863847,86.86,86.832,10.3729]
[1770573079677,3.7239274,86.859,86.832,10.3729]
[1770573079877,3.7239274,86.859,86.821,10.3742]
[1770573082778,4.40863847,86.86,86.822,3.90476312]
[1770573083469,3.7239274,86.867,86.822,3.90476312]
[1770573084774,4.40863847,86.86,86.822,3.90476312]
[1770573085979,3.7239274,86.867,86.822,3.90476312]
[1770573086181,4.40863847,86.86,86.822,3.90476312]
[1770573092781,9.14678061,86.859,86.822,3.90476312]
[1770573092981,4.40863847,86.86,86.822,3.90476312]
[1770573093183,9.14678061,86.859,86.822,3.90476312]
[1770573093383,4.40863847,86.86,86.822,3.90476312]
[1770573093585,9.14675333,86.859,86.822,3.90476312]
[1770573093778,9.14675333,86.858,86.822,3.90476312]
[1770573093980,9.14675333,86.857,86.822,3.90476312]
[1770573094180,9.14675333,86.856,86.822,3.90476312]
[1770573094375,9.14675333,86.855,86.822,3.90476312]
[1770573094579,3.7239274,86.866,86.822,3.90476312]
[1770573094580,9.14675333,86.854,86.822,3.90476312]
[1770573094775,3.7239274,86.866,86.822,3.90476312]
[1770573094984,3.7239274,86.864,86.822,3.90476312]
[1770573095183,9.14911739,86.863,86.822,3.90476312]
[1770573095386,12.87304479,86.862,86.822,3.90476312]
[1770573095586,12.87304479,86.861,86.822,3.90476312]
[1770573095881,9.14911739,86.86,86.822,3.90476312]
[1770573096085,9.14911739,86.859,86.822,3.90476312]
[1770573096288,9.14911739,86.858,86.822,3.90476312]
[1770573096486,9.14911739,86.857,86.822,3.90476312]
[1770573096679,9.14911739,86.856,86.822,3.90476312]
[1770573096881,3.7239274,86.861,86.822,3.90476312]
[1770573097081,9.15265621,86.86,86.822,3.90476312]
[1770573097281,9.15265621,86.859,86.822,3.90476312]
[1770573097477,9.15265621,86.858,86.822,3.90476312]
[1770573097678,9.15265621,86.857,86.822,3.90476312]
[1770573097881,4.41227271,86.87,86.827,3.90476312]
[1770573098083,9.15496945,86.869,86.827,3.90476312]
[1770573098379,9.15496945,86.868,86.827,3.90476312]
[1770573098580,9.15496945,86.867,86.827,3.90476312]
[1770573098777,9.15496945,86.866,86.829,3.90476312]
[1770573098982,9.15496945,86.865,86.829,3.90476312]
[1770573099182,9.15496945,86.864,86.829,3.90476312]
[1770573099385,10.72986748,86.883,86.836,3.90476312]
[1770573099588,3.7239274,86.891,86.841,1.88347136]
[1770573099785,3.7239274,86.889,86.841,1.88347136]
[1770573100188,3.7239274,86.879,86.841,1.88347136]
[1770573101186,3.7239274,86.879,86.844,10.3714]
[1770573101387,3.7239274,86.879,86.844,12.25204964]
[1770573102083,3.7239274,86.879,86.845,1.88064964]
[1770573105088,3.91380831,86.89,86.848,1.889848]
[1770573105686,3.91380831,86.889,86.848,1.889848]
[1770573108489,3.91380831,86.889,86.855,1.88479701]
[1770573109189,3.91380831,86.879,86.829,1.90703779]
[1770573110792,3.91380831,86.879,86.832,10.3728]
[1770573110997,3.91380831,86.879,86.832,12.26645108]
[1770573111500,3.91380831,86.877,86.832,12.26645108]
[1770573111687,3.91380831,86.875,86.832,12.26645108]
[1770573111884,3.91380831,86.873,86.832,12.26645108]
[1770573112790,3.91380831,86.873,86.833,1.901787]
[1770573112988,3.91380831,86.873,86.834,10.3726]
[1770573113185,3.91380831,86.873,86.835,1.901787]
[1770573114396,14.30539658,86.906,86.798,16.0]
[1770573114397,4.41227271,86.89,86.846,1.901787]
[1770573114598,9.02933,86.889,86.846,1.901787]
[1770573114798,9.02933,86.888,86.846,1.901787]
[1770573114992,9.02933,86.887,86.846,1.901787]
[1770573115298,9.02933,86.886,86.846,1.901787]
[1770573115497,9.02933,86.885,86.846,1.901787]
[1770573115696,3.91380831,86.889,86.848,10.3709]
[1770573116293,3.91380831,86.889,86.848,12.27386027]
[1770573118592,8.32608102,86.88,86.848,10.3709]
[1770573119394,3.91380831,86.879,86.82,1.90318877]
[1770573119698,3.91380831,86.879,86.821,1.90318877]
[1770573120697,8.32608102,86.89,86.839,1.90556414]
[1770573120899,3.91380831,86.889,86.839,1.90556414]
[1770573121300,10.3636,86.91,86.851,1.90556414]
[1770573121301,3.91380831,86.901,86.851,1.90556414]
[1770573121496,9.02220719,86.9,86.851,1.90556414]
[1770573121702,3.91380831,86.901,86.851,1.90556414]
[1770573121999,460.80009662,86.931,86.817,11.52]
[1770573122000,3.91380831,86.926,86.865,1.90556414]
[1770573122208,3.91380831,86.919,86.871,1.90556414]
[1770573122403,3.91380831,86.917,86.871,1.90556414]
[1770573122604,3.91380831,86.915,86.871,1.90556414]
[1770573122803,3.91380831,86.915,86.881,10.367]
[1770573123106,3.91380831,86.915,86.882,1.86823568]
[1770573124195,3.91380831,86.927,86.882,1.86823568]
[1770573124398,3.91380831,86.939,86.885,1.86823568]
[1770573125707,3.91380831,86.939,86.887,1.81542544]
[1770573126708,3.91380831,86.939,86.891,1.8050567]
[1770573127410,3.91380831,86.919,86.869,1.8050567]
[1770573127599,3.91380831,86.919,86.871,1.8050567]
[1770573128405,10.72986748,86.973,86.89,10.3659]
[1770573128406,4.41227271,86.93,86.89,10.3659]
[1770573128703,3.91380831,86.949,86.891,1.8050567]
[1770573128910,3.91380831,86.959,86.901,1.85492444]
[1770573129114,3.91380831,86.949,86.898,10.3649]
[1770573129303,3.91380831,86.939,86.898,10.3649]
[1770573130507,3.91380831,86.939,86.898,12.21982444]
[1770573131508,4.41227271,86.94,86.899,1.84885325]
[1770573131712,442.62833032,86.982,86.908,10.3638]
[1770573131713,3.91380831,86.954,86.908,10.3638]
[1770573131911,3.91380831,86.949,86.908,10.3638]
[1770573132112,3.91380831,86.949,86.899,1.84885325]
[1770573133616,3.91380831,86.949,86.9,10.3648]
[1770573136511,3.91380831,86.949,86.903,10.3643]
[1770573138221,3.91380831,86.949,86.903,12.18809891]
[1770573138522,3.91380831,86.949,86.907,10.3639]
[1770573139411,442.62833032,86.982,86.908,1.81289957]
[1770573139730,4.41227271,86.97,86.911,3.79188211]
[1770573140922,4.41227271,86.97,86.924,3.79188211]
[1770573141427,3.88060561,86.969,86.924,3.79188211]
[1770573146238,3.88060561,86.959,86.924,3.79188211]
[1770573147530,3.88060561,86.969,86.924,3.79188211]
[1770573147838,3.88060561,86.969,86.926,3.79188211]
[1770573148337,4.41227271,86.98,86.936,3.79188211]
[1770573148728,3.88060561,86.979,86.936,3.79188211]
[1770573151138,3.88060561,86.979,86.939,3.79188211]
[1770573152338,449.12211001,87.024,86.903,46.13]
[1770573152339,3.88060561,86.999,86.945,3.79188211]
[1770573152639,3.88060561,86.999,86.896,161.2366]
[1770573152640,3.88060561,87.009,86.951,3.79188211]
[1770573152840,4.41227271,86.98,86.921,3.79188211]
[1770573153044,3.88060561,86.989,86.948,10.359]
[1770573153440,3.88060561,86.989,86.896,161.237]
[1770573153442,3.88060561,87.016,86.949,3.79188211]
[1770573153632,3.88060561,87.016,86.914,195.7342]
[1770573153633,3.88060561,87.016,86.961,3.79188211]
[1770573153839,3.88060561,87.009,86.915,3.79188211]
[1770573154044,3.88060561,86.979,86.921,3.79188211]
[1770573154240,3.88060561,86.991,86.941,3.79188211]
[1770573154543,3.88060561,86.979,86.941,3.79188211]
[1770573156146,4.41227271,86.99,86.941,3.79188211]
[1770573156340,4.41227271,87.0,86.941,3.79188211]
[1770573156538,4.41227271,86.98,86.941,3.79188211]
[1770573156743,4.41227271,86.99,86.941,3.79188211]
[1770573156943,4.39897391,86.99,86.941,3.79188211]
[1770573157140,4.39897391,86.99,86.956,10.358]
[1770573157346,3.88060561,86.999,86.957,3.79188211]
[1770573157541,4.39897391,87.01,86.957,3.79188211]
[1770573157943,4.39897391,87.0,86.957,3.79188211]
[1770573158849,4.39897391,87.0,86.959,3.79188211]
[1770573159042,8.27957952,86.99,86.945,3.79188211]
[1770573159243,4.39897391,86.98,86.945,3.79188211]
[1770573159443,3.88060561,86.989,86.945,3.79188211]
[1770573159643,10.3499,87.025,86.948,3.79188211]
[1770573159644,4.39897391,87.0,86.948,3.79188211]
[1770573159854,8.27957952,87.0,86.948,3.79188211]
[1770573160051,4.39897391,86.99,86.948,3.79188211]
[1770573160852,4.39897391,86.99,86.94,4.39897391]
[1770573160853,4.39897391,86.99,86.952,3.79188211]
[1770573161654,8.27957952,87.0,86.952,3.79188211]
[1770573161848,3.88060561,86.999,86.956,3.79188211]
[1770573162552,298.0,87.048,86.933,3.79188211]
[1770573162553,4.39897391,86.97,86.933,3.79188211]
[1770573162851,4.39897391,86.98,86.933,3.79188211]
[1770573163357,4.39897391,86.98,86.942,3.79188211]
[1770573163555,4.39897391,86.99,86.942,3.79188211]
[1770573164157,14.30539658,87.031,86.904,34.53]
[1770573164158,4.39897391,87.0,86.946,3.79188211]
[1770573165849,4.39897391,87.0,86.954,3.84440467]
[1770573166457,4.39897391,87.0,86.958,3.84440467]
[1770573167251,3.74391551,86.999,86.96,10.3576]
[1770573167446,4.39897391,86.98,86.938,3.84440467]
[1770573167853,3.74391551,87.004,86.945,10.3594]
[1770573168055,4.39897391,86.99,86.946,3.84440467]
[1770573168356,3.74391551,86.979,86.936,10.3604]
[1770573169353,4.39897391,86.98,86.937,3.84440467]
[1770573169556,3.74391551,86.997,86.942,3.84440467]
[1770573169752,8.14288942,86.99,86.942,3.84440467]
[1770573169950,3.74391551,86.989,86.942,3.84440467]
[1770573170149,4.39897391,86.98,86.948,10.359]
[1770573170351,3.74391551,86.979,86.927,3.84440467]
[1770573170754,4.39897391,86.99,86.948,10.359]
[1770573171159,3.74391551,86.979,86.934,3.84440467]
[1770573172864,3.74391551,86.979,86.938,10.3602]
[1770573173253,3.74391551,86.979,86.921,3.84440467]
[1770573173453,3.74391551,86.959,86.908,3.84440467]
[1770573173658,3.74391551,86.949,86.908,3.84440467]
[1770573173858,3.74391551,86.939,86.891,3.84440467]
[1770573174061,21.38848713,87.009,86.88,4.39897391]
[1770573174062,3.74391551,86.929,86.88,4.39897391]
[1770573174463,3.74391551,86.929,86.878,3.84440467]
[1770573175065,4.39897391,86.92,86.886,10.3663]
[1770573175560,4.39897391,86.91,86.871,10.3682]
[1770573176162,3.74391551,86.919,86.871,10.3682]
[1770573177271,3.74391551,86.919,86.872,3.84440467]
[1770573180273,3.74391551,86.909,86.858,3.84440467]
[1770573180776,3.74391551,86.899,86.858,3.84440467]
[1770573181075,10.3612,86.931,86.845,10.3713]
[1770573181076,8.14288942,86.89,86.845,10.3713]
[1770573181377,3.74391551,86.89,86.845,10.3713]
[1770573182082,4.39897391,86.9,86.852,3.84440467]
[1770573182281,3.74391551,86.904,86.852,3.84440467]
[1770573182779,3.74391551,86.904,86.855,14.21450467]
[1770573182979,3.74391551,86.904,86.856,3.84440467]
[1770573183377,3.74391551,86.904,86.857,10.3699]
[1770573184582,3.74391551,86.904,86.857,14.21430467]
[1770573184878,3.74391551,86.904,86.746,49.5182933]
[1770573184879,3.74391551,86.934,86.861,3.84440467]
[1770573185078,3.74391551,86.929,86.881,3.84440467]
[1770573185285,3.74391551,86.919,86.87,8.24337858]
[1770573185487,3.74391551,86.919,86.87,3.84440467]
[1770573185783,3.74391551,86.919,86.878,10.3673]
[1770573187683,3.74391551,86.919,86.884,10.3666]
[1770573187884,4.39897391,86.93,86.884,10.3666]
[1770573188580,3.74391551,86.948,86.891,3.84440467]
[1770573189679,3.74391551,86.948,86.891,14.21020467]
[1770573189883,3.74391551,86.948,86.892,3.84440467]
[1770573190787,3.74391551,86.948,86.896,3.84440467]
[1770573190987,3.74391551,86.948,86.9,8.24337858]
[1770573191185,3.74391551,86.948,86.9,3.84440467]
[1770573191587,3.74391551,86.959,86.907,3.84440467]
[1770573191982,3.74391551,86.959,86.911,3.84440467]
[1770573192178,3.74391551,86.959,86.862,161.3004]
[1770573192179,3.74391551,86.959,86.921,3.84440467]
[1770573192388,3.74391551,86.959,86.906,3.84440467]
[1770573192589,4.39897391,86.95,86.909,10.3636]
[1770573192979,3.74391551,86.959,86.909,10.3636]
[1770573194484,3.74391551,86.949,86.898,10.3649]
[1770573194689,3.74391551,86.949,86.901,3.86859804]
[1770573195676,3.74391551,86.949,86.909,10.3636]
[1770573196981,3.74391551,86.949,86.863,11.49]
[1770573196982,4.07052904,86.939,86.895,10.3653]
[1770573197690,4.07052904,86.939,86.887,4.05735223]
[1770573197884,4.07052904,86.929,86.862,16.0]
[1770573198082,4.07052904,86.929,86.87,4.39897391]
[1770573198285,4.07052904,86.929,86.87,8.45632614]
[1770573198687,4.07052904,86.929,86.873,10.3679]
[1770573198887,4.07052904,86.929,86.881,4.05735223]
[1770573199090,4.07052904,86.929,86.89,4.39897391]
[1770573200693,4.07052904,86.929,86.886,14.42365223]
[1770573201495,4.07052904,86.929,86.888,14.42355223]
[1770573203997,4.07052904,86.929,86.878,10.3674]
[1770573204201,4.07052904,86.909,86.861,4.05735223]
[1770573204594,4.07052904,86.909,86.863,10.3692]
[1770573205696,4.07052904,86.936,86.868,4.05735223]
[1770573206003,4.07052904,86.919,86.868,4.05735223]
[1770573206801,4.07052904,86.919,86.869,10.3685]
[1770573207202,4.07052904,86.909,86.869,10.3685]
[1770573208901,4.07052904,86.909,86.87,4.05735223]
[1770573210498,4.39897391,86.92,86.872,10.368]
[1770573210701,4.39897391,86.92,86.873,4.05735223]
[1770573211302,4.07052904,86.922,86.873,4.05735223]
[1770573212699,8.46950295,86.91,86.872,10.368]
[1770573212899,4.07052904,86.91,86.863,4.05735223]
[1770573213599,4.07052904,86.924,86.873,4.05735223]
[1770573215799,4.39897391,86.92,86.873,4.05735223]
[1770573216099,4.07052904,86.919,86.873,4.05735223]
[1770573219405,4.07052904,86.919,86.862,10.3692]
[1770573219608,14.30539658,86.957,86.833,11.49]
[1770573219609,4.07052904,86.899,86.847,4.05735223]
[1770573220801,4.07052904,86.899,86.849,10.3708]
[1770573220996,4.07052904,86.899,86.847,4.05735223]
[1770573221200,4.07052904,86.899,86.852,4.05735223]
[1770573222797,4.07052904,86.899,86.852,14.42785223]
[1770573223008,4.07052904,86.899,86.853,4.05735223]
[1770573223904,4.07052904,86.899,86.858,14.42705223]
[1770573224305,4.07052904,86.899,86.859,4.05735223]
[1770573225908,4.01451803,86.912,86.867,4.00095076]
[1770573226210,13.05173795,86.911,86.867,4.00095076]
[1770573226410,4.01451803,86.911,86.867,4.00095076]
[1770573226708,4.01451803,86.911,86.87,10.3683]
[1770573227407,4.01451803,86.909,86.86,10.3694]
[1770573227605,4.01451803,86.907,86.86,10.3694]
[1770573227804,4.01451803,86.905,86.86,10.3694]
[1770573229007,4.01451803,86.903,86.86,10.3694]
[1770573229303,4.01451803,86.899,86.849,10.3707]
[1770573229498,4.01451803,86.899,86.84,4.40657214]
[1770573229703,4.01451803,86.879,86.833,10.3727]
[1770573231804,4.01451803,86.879,86.821,21.8642]
[1770573232003,4.01451803,86.869,86.821,10.3742]
[1770573232608,4.01451803,86.859,86.811,10.3753]
[1770573233199,4.01451803,86.859,86.808,4.00095076]
[1770573233604,4.01451803,86.839,86.793,4.00095076]
[1770573233905,4.01451803,86.839,86.788,10.378]
[1770573234807,4.01451803,86.839,86.768,10.3805]
[1770573235012,4.01451803,86.819,86.768,10.3805]
[1770573235211,4.01451803,86.819,86.712,161.5797]
[1770573235212,4.01451803,86.819,86.771,4.00095076]
[1770573236415,4.01451803,86.809,86.756,4.00095076]
[1770573237112,4.01451803,86.799,86.756,4.00095076]
[1770573238609,4.01451803,86.789,86.736,4.00095076]
[1770573238812,4.01451803,86.789,86.74,4.40657214]
[1770573239506,4.40657214,86.8,86.741,4.00095076]
[1770573239712,4.40657214,86.8,86.74,4.40657214]
[1770573239713,4.40657214,86.8,86.743,4.00095076]
[1770573240021,4.01451803,86.799,86.743,4.00095076]
[1770573240814,4.01451803,86.799,86.76,4.40657214]
[1770573242015,4.01451803,86.826,86.78,8.4075229]
[1770573242606,4.01451803,86.826,86.78,4.00095076]
[1770573244506,4.01451803,86.859,86.783,4.00095076]
[1770573245309,11.82778238,86.86,86.784,10.3785]
[1770573245310,4.01451803,86.857,86.784,10.3785]
[1770573245708,8.96887231,86.856,86.784,10.3785]
[1770573246016,4.01451803,86.854,86.784,10.3785]
[1770573246217,4.01451803,86.839,86.772,10.38]
[1770573246418,4.01451803,86.837,86.755,4.00095076]
[1770573246613,4.01451803,86.835,86.755,4.00095076]
[1770573247312,4.01451803,86.833,86.755,4.00095076]
[1770573247512,4.01451803,86.829,86.759,10.3815]
[1770573247710,4.01451803,86.819,86.759,10.3815]
[1770573248517,4.01451803,86.819,86.748,10.3829]
[1770573248913,4.01451803,86.819,86.711,4.00095076]
[1770573249422,4.01451803,86.799,86.723,4.00095076]
[1770573249613,4.01451803,86.799,86.735,10.3844]
[1770573249813,4.01451803,86.799,86.736,4.00095076]
[1770573250014,4.01451803,86.799,86.723,4.00095076]
[1770573251721,4.01451803,86.798,86.726,10.3855]
[1770573252715,4.01451803,86.795,86.726,10.3855]
[1770573252914,4.01451803,86.779,86.715,10.3868]
[1770573255312,4.01451803,86.779,86.709,4.00095076]
[1770573255820,3.9636466,86.777,86.701,10.3885]
[1770573256518,3.9636466,86.777,86.695,4.07156342]
[1770573256720,3.9636466,86.759,86.695,4.07156342]
[1770573257727,3.9636466,86.759,86.66,13.83432671]
[1770573257728,3.9636466,86.759,86.702,4.07156342]
[1770573258523,3.9636466,86.759,86.706,10.3879]
[1770573258923,3.9636466,86.759,86.702,4.07156342]
[1770573259124,3.9636466,86.759,86.694,10.3893]
[1770573259313,3.9636466,86.759,86.695,4.07156342]
[1770573259726,443.48449629,86.799,86.658,230.3]
[1770573259727,11.82778238,86.74,86.682,10.3908]
[1770573259921,443.48449629,86.799,86.639,4.07156342]
[1770573259922,3.9636466,86.719,86.639,4.07156342]
[1770573260323,3.9636466,86.719,86.647,4.07156342]
[1770573261722,3.9636466,86.719,86.648,4.07156342]
[1770573262325,3.9636466,86.719,86.63,11.82778238]
[1770573262326,3.9636466,86.719,86.651,4.07156342]
[1770573262925,3.9636466,86.719,86.654,10.3942]
[1770573263626,3.9636466,86.719,86.656,10.3939]
[1770573263828,3.9636466,86.719,86.657,4.07156342]
[1770573264028,3.9636466,86.733,86.657,4.07156342]
[1770573265733,3.9636466,86.733,86.65,11.82778238]
[1770573265734,3.9636466,86.733,86.671,4.07156342]
[1770573266835,3.9636466,86.733,86.673,4.07156342]
[1770573267035,3.9636466,86.748,86.673,4.07156342]
[1770573267435,3.9636466,86.748,86.69,4.07156342]
[1770573268534,10.3805,86.769,86.67,11.82778238]
[1770573268535,3.9636466,86.768,86.693,4.07156342]
[1770573268728,11.82778238,86.78,86.693,4.07156342]
[1770573268729,3.9636466,86.766,86.693,4.07156342]
[1770573269734,3.9636466,86.759,86.685,10.3905]
[1770573270040,3.9636466,86.759,86.679,4.07156342]
[1770573270840,3.9636466,86.739,86.679,4.07156342]
[1770573272338,3.9636466,86.739,86.684,4.07156342]
[1770573273440,3.9636466,86.739,86.697,10.389]
[1770573274046,3.9636466,86.739,86.687,4.07156342]
[1770573275748,3.9636466,86.739,86.677,10.3914]
[1770573276242,3.9636466,86.729,86.657,4.07156342]
[1770573276839,3.9636466,86.727,86.657,4.07156342]
[1770573277233,3.9636466,86.725,86.657,4.07156342]
[1770573277445,3.9636466,86.723,86.657,4.07156342]
[1770573277641,3.9636466,86.723,86.66,4.07156342]
[1770573278441,3.9636466,86.723,86.663,4.07156342]
[1770573278641,3.9636466,86.749,86.679,4.07156342]
[1770573278837,3.9636466,86.747,86.679,4.07156342]
[1770573279245,3.9636466,86.747,86.688,4.07156342]
[1770573279647,3.9636466,86.77,86.701,4.07156342]
[1770573279948,3.9636466,86.768,86.701,4.07156342]
[1770573280249,3.9636466,86.763,86.701,4.07156342]
[1770573280445,3.9636466,86.761,86.701,4.07156342]
[1770573280641,3.9636466,86.759,86.701,4.07156342]
[1770573281344,3.9636466,86.759,86.68,11.85227482]
[1770573281345,3.9636466,86.757,86.702,4.07156342]
[1770573282849,3.9636466,86.757,86.704,4.07156342]
[1770573283751,3.9636466,86.755,86.704,4.07156342]
[1770573283948,3.9636466,86.753,86.704,4.07156342]
[1770573284148,3.9636466,86.751,86.704,4.07156342]
[1770573285346,10.5908277,86.777,86.706,3.86756496]
[1770573285347,3.68699435,86.765,86.706,3.86756496]
[1770573286846,3.68699435,86.78,86.714,3.86756496]
[1770573287051,3.68699435,86.778,86.714,3.86756496]
[1770573287249,3.68699435,86.776,86.714,3.86756496]
[1770573287547,3.68699435,86.774,86.714,14.25446496]
[1770573287765,3.68699435,86.729,86.655,3.86756496]
[1770573288053,11.85227482,86.73,86.634,3.86756496]
[1770573288054,3.68699435,86.727,86.634,3.86756496]
[1770573288250,3.68699435,86.725,86.634,3.86756496]
[1770573288451,3.68699435,86.723,86.636,3.86756496]
[1770573288647,3.68699435,86.721,86.654,10.3942]
[1770573288850,3.68699435,86.719,86.654,10.3942]
[1770573289054,3.68699435,86.717,86.654,10.3942]
[1770573289244,3.68699435,86.715,86.654,10.3942]
[1770573289452,3.68699435,86.713,86.651,3.86756496]
[1770573290256,3.68699435,86.729,86.664,3.86756496]
[1770573291155,9.04820245,86.728,86.664,3.86756496]
[1770573291359,3.68699435,86.729,86.664,3.86756496]
[1770573291559,9.04820245,86.728,86.664,3.86756496]
[1770573291859,3.68699435,86.729,86.666,3.86756496]
[1770573292059,9.0486505,86.728,86.666,3.86756496]
[1770573292255,9.05428197,86.727,86.666,3.86756496]
[1770573292560,3.68699435,86.729,86.666,3.86756496]
[1770573292760,12.74025197,86.728,86.67,3.86756496]
[1770573293055,12.74025197,86.727,86.67,3.86756496]
[1770573293357,3.68699435,86.725,86.67,3.86756496]
[1770573294254,9.0621912,86.724,86.671,10.3921]
[1770573294559,3.68699435,86.723,86.671,14.25966496]
[1770573295950,3.68699435,86.723,86.674,3.86756496]
[1770573296855,3.68699435,86.74,86.674,3.86756496]
[1770573297056,9.07177834,86.739,86.676,3.86756496]
[1770573297459,9.07177834,86.738,86.676,3.86756496]
[1770573297760,9.07177834,86.737,86.676,3.86756496]
[1770573298063,9.07592662,86.736,86.676,3.86756496]
[1770573298263,9.07592662,86.735,86.676,3.86756496]
[1770573298464,3.68699435,86.754,86.694,3.86756496]
[1770573298664,9.08024372,86.753,86.694,3.86756496]
[1770573298861,9.08024372,86.752,86.694,3.86756496]
[1770573299064,9.08024372,86.751,86.694,3.86756496]
[1770573299257,9.08024372,86.75,86.694,3.86756496]
[1770573299457,9.08247195,86.749,86.694,3.86756496]
[1770573299662,9.08247195,86.748,86.694,3.86756496]
[1770573299864,9.08247195,86.747,86.696,3.86756496]
[1770573300063,3.68699435,86.768,86.696,3.86756496]
[1770573300271,9.08574577,86.767,86.696,3.86756496]
[1770573300565,9.08574577,86.766,86.696,3.86756496]
[1770573300754,9.08574577,86.765,86.696,3.86756496]
[1770573300951,9.09158884,86.764,86.696,3.86756496]
[1770573301157,9.09158884,86.763,86.712,3.86756496]
[1770573301468,3.68699435,86.785,86.712,3.86756496]
[1770573301766,3.68699435,86.783,86.724,14.25326496]